bitfinex/quotes_SOLUSD_20241205
["timestamp","ask_amount","ask_price","bid_price","bid_amount"]
[1733358605814,1.06628451,227.95,227.79,0.87542869]
[1733358606023,1.06628451,227.95,227.83,20.0]
[1733358606226,1.06628451,227.95,227.83,20.8752993]
[1733358606434,1.06628451,227.95,227.84,2.19326343]
[1733358606984,6.2828,228.02,227.85,0.87531467]
[1733358607204,1.06628451,228.01,227.85,6.3615982]
[1733358607397,1.06628451,228.01,227.86,2.19326343]
[1733358607598,1.06628451,228.01,227.88,0.05606261]
[1733358607804,6.2828,228.02,227.89,0.05606261]
[1733358608007,6.2828,228.02,227.91,20.0]
[1733358608405,6.2828,228.02,227.92,2.19326343]
[1733358608606,9.67578303,228.08,227.92,3.0682571]
[1733358608607,6.5236,228.07,227.92,3.0682571]
[1733358608812,1.06628451,228.06,227.93,7.67954696]
[1733358608998,1.06628451,228.06,227.93,2.19326343]
[1733358609202,1.06628451,228.06,227.95,0.05606261]
[1733358609404,9.13358451,228.14,227.96,2.19326343]
[1733358609596,9.13358451,228.14,227.97,0.05606261]
[1733358610207,9.13358451,228.14,228.0,20.0]
[1733358610398,9.13358451,228.14,228.01,0.8746912]
[1733358610708,9.13358451,228.14,228.02,2.19326343]
[1733358610913,1.57780411,228.18,228.03,3.06785456]
[1733358611128,1.57780411,228.18,228.03,6.36087466]
[1733358611722,1.57780411,228.18,228.04,0.05606261]
[1733358612033,1.57780411,228.18,228.05,2.19326343]
[1733358612198,23.776884,228.17,228.06,2.19326343]
[1733358612401,1.06628451,228.16,228.05,2.19326343]
[1733358612699,23.776884,228.15,228.05,2.19326343]
[1733358613034,20.0,228.12,228.05,2.19326343]
[1733358613199,1.06628451,228.11,228.03,0.05606261]
[1733358614026,1.06628451,228.11,228.02,2.24932604]
[1733358614337,23.776884,228.1,228.02,0.05606261]
[1733358614498,1.06628451,228.09,228.02,0.05606261]
[1733358614859,20.0,228.07,228.0,0.05606261]
[1733358614999,1.06628451,228.06,228.0,0.05606261]
[1733358615612,20.0,228.02,227.99,2.19326343]
[1733358615818,1.06628451,228.01,227.97,0.05606261]
[1733358616147,20.0,228.02,227.95,0.05606261]
[1733358616325,1.06628451,228.04,227.95,0.05606261]
[1733358616326,23.776884,228.03,227.95,0.05606261]
[1733358616529,1.06628451,228.02,227.95,0.05606261]
[1733358616830,21.06628451,228.02,227.95,0.05606261]
[1733358617215,21.06628451,228.02,227.95,2.19326343]
[1733358617651,21.06628451,228.02,227.94,2.19326343]
[1733358617840,21.06628451,228.02,227.95,2.19326343]
[1733358618043,23.776884,228.01,227.95,2.19326343]
[1733358618240,1.06628451,228.0,227.95,2.19326343]
[1733358618537,1.06628451,228.0,227.93,0.05606261]
[1733358618538,1.06628451,228.01,227.94,2.19326343]
[1733358618841,1.06628451,228.01,227.95,2.19326343]
[1733358619033,1.06628451,228.01,227.94,2.19326343]
[1733358619226,1.06628451,228.06,227.95,2.19326343]
[1733358619429,1.06628451,228.06,227.96,2.19326343]
[1733358619629,1.06628451,228.06,227.97,2.19326343]
[1733358619930,6.3508,228.07,227.97,2.19326343]
[1733358620256,7.15048451,228.13,227.98,2.19326343]
[1733358620419,7.15048451,228.13,227.99,2.24932604]
[1733358620620,7.15048451,228.13,228.0,2.19326343]
[1733358620824,7.15048451,228.13,228.01,2.19326343]
[1733358621117,7.15048451,228.13,228.02,2.19326343]
[1733358621335,7.15048451,228.13,228.0,0.05606261]
[1733358621336,7.15048451,228.13,228.03,2.19326343]
[1733358621536,7.15048451,228.13,228.01,2.24932604]
[1733358621725,7.15048451,228.13,228.02,2.24932604]
[1733358621928,7.15048451,228.13,228.02,3.12397557]
[1733358622147,7.15048451,228.13,228.03,2.19326343]
[1733358622450,0.5115196,228.18,228.04,3.06791937]
[1733358622750,1.57780411,228.18,228.05,2.24932604]
[1733358622949,1.57780411,228.18,228.06,2.19326343]
[1733358623249,1.57780411,228.18,228.07,2.19326343]
[1733358623451,1.57780411,228.18,228.08,2.19326343]
[1733358623624,0.5115196,228.18,228.09,0.87445]
[1733358625123,0.5115196,228.18,228.04,0.87440272]
[1733358625349,1.57780411,228.18,228.04,0.87440272]
[1733358626134,0.5115196,228.18,228.08,20.0]
[1733358626340,0.5115196,228.18,228.09,0.8742862]
[1733358626655,0.5115196,228.18,228.13,20.0]
[1733358627233,0.5115196,228.18,228.08,20.0]
[1733358627634,0.5115196,228.18,228.06,20.87429714]
[1733358627829,0.5115196,228.18,228.06,0.87429714]
[1733358628039,0.5115196,228.18,228.02,0.87437138]
[1733358628334,20.0,228.17,228.02,0.87437138]
[1733358628534,1.06628451,228.16,228.02,0.87437138]
[1733358629031,1.06628451,228.16,228.0,0.87460047]
[1733358629247,23.776884,228.15,228.0,6.713184]
[1733358629555,1.06628451,228.16,228.0,6.713184]
[1733358629556,20.0,228.12,228.0,0.87460047]
[1733358629742,20.0,228.12,228.0,6.713184]
[1733358629956,1.06628451,228.17,228.01,29.61546753]
[1733358630256,1.06628451,228.17,228.03,23.776884]
[1733358630432,1.06628451,228.17,228.04,0.8744815]
[1733358630846,1.06628451,228.17,228.06,20.0]
[1733358631049,7.1165196,228.18,228.06,20.0]
[1733358631245,7.1165196,228.18,228.06,26.71304036]
[1733358631461,0.5115196,228.18,228.07,5.83858353]
[1733358631647,0.5115196,228.18,228.08,0.87428653]
[1733358631966,0.5115196,228.18,228.06,20.0]
[1733358632648,0.5115196,228.18,228.06,25.83858353]
[1733358632858,0.5115196,228.18,228.06,26.71302037]
[1733358633056,0.5115196,228.18,228.07,5.83858353]
[1733358633359,0.5115196,228.18,228.04,24.6512806]
[1733358633546,0.5115196,228.18,228.04,0.8743966]
[1733358634242,21.544,228.17,228.02,20.0]
[1733358634442,1.06628451,228.16,228.02,20.0]
[1733358634846,20.0,228.12,228.0,0.8745413]
[1733358635651,20.0,228.12,227.99,6.3937]
[1733358636163,26.1813,228.12,227.93,2.49557786]
[1733358636464,20.0,228.08,227.93,2.49557786]
[1733358636635,1.06628451,228.07,227.93,2.49557786]
[1733358637070,1.06628451,228.07,227.93,0.87477786]
[1733358637251,1.06628451,228.07,227.87,6.6565445]
[1733358637252,1.06628451,228.07,227.89,0.87494359]
[1733358637656,1.5447,228.06,227.89,0.87494359]
[1733358637849,23.776884,228.04,227.89,0.87494359]
[1733358638056,1.06628451,228.03,227.89,0.87494359]
[1733358638276,23.776884,228.02,227.87,6.1953]
[1733358638579,23.776884,228.02,227.83,0.87516496]
[1733358638580,6.5772,227.98,227.83,0.87516496]
[1733358638757,20.0,227.95,227.83,0.87516496]
[1733358638939,1.06628451,227.94,227.83,0.87516496]
[1733358639649,1.06628451,227.94,227.82,0.87535123]
[1733358640440,1.06628451,227.94,227.79,0.87540102]
[1733358641066,20.0,227.9,227.76,0.87544985]
[1733358641364,1.06628451,227.89,227.76,0.87544985]
[1733358641743,1.5447,227.93,227.77,0.12549]
[1733358641968,1.5447,227.93,227.78,0.87536388]
[1733358642163,1.06628451,227.92,227.78,0.87536388]
[1733358642469,1.06628451,227.92,227.78,20.87536388]
[1733358643440,1.5447,227.93,227.82,20.0]
[1733358643769,1.5447,227.93,227.83,0.87531098]
[1733358644274,6.5772,227.98,227.83,0.87531098]
[1733358644475,1.06628451,227.97,227.83,0.87531098]
[1733358644772,1.06628451,227.97,227.87,20.0]
[1733358644939,6.5772,227.98,227.87,20.87515153]
[1733358646073,1.06628451,227.97,227.84,24.65201068]
[1733358646252,20.0,227.95,227.82,20.0]
[1733358646457,1.06628451,227.94,227.81,23.776884]
[1733358646655,1.06628451,227.94,227.84,20.0]
[1733358646850,20.0,227.95,227.84,20.0]
[1733358647051,20.0,227.95,227.85,0.87523601]
[1733358647372,6.5772,227.98,227.86,23.776884]
[1733358647667,6.5772,227.98,227.87,0.87509855]
[1733358648375,1.5447,227.99,227.87,0.87509855]
[1733358648539,6.2428,228.03,227.91,20.0]
[1733358648749,6.2428,228.03,227.92,24.65184489]
[1733358649059,1.6223,228.05,227.92,24.65184489]
[1733358649060,1.6223,228.05,227.95,20.0]
[1733358650584,1.6223,228.05,227.92,0.87496089]
[1733358650877,1.06628451,228.04,227.91,20.0]
[1733358651056,1.06628451,228.04,227.92,0.87495429]
[1733358654768,20.0,228.0,227.89,0.87500562]
[1733358654977,20.0,228.0,227.85,23.776884]
[1733358655172,1.06628451,227.99,227.87,23.776884]
[1733358655479,1.06628451,227.99,227.83,0.8751688]
[1733358655784,30.244584,227.98,227.83,0.8751688]
[1733358655968,20.0,227.95,227.79,0.87534842]
[1733358656373,1.06628451,227.94,227.79,0.87534842]
[1733358656554,1.6572,227.93,227.79,0.87534842]
[1733358657058,1.6572,227.93,227.81,20.0]
[1733358657254,1.6572,227.93,227.79,0.87534842]
[1733358657672,1.06628451,227.92,227.79,0.87534842]
[1733358657861,1.06628451,227.92,227.75,0.87553308]
[1733358658989,1.06628451,227.92,227.76,0.87552137]
[1733358659481,23.776884,227.91,227.76,0.87552137]
[1733358659663,1.06628451,227.9,227.76,0.87552137]
[1733358659857,20.0,227.89,227.77,0.8755574]
[1733358660057,20.0,227.89,227.75,20.0]
[1733358660257,6.4175,227.87,227.76,0.87552911]
[1733358660484,20.0,227.84,227.71,0.87564955]
[1733358660673,1.06628451,227.83,227.71,0.87564955]
[1733358661176,1.06628451,227.83,227.65,6.4367]
[1733358661177,1.06628451,227.83,227.67,0.12549]
[1733358661388,1.5885,227.82,227.68,0.87579079]
[1733358661571,1.06628451,227.81,227.68,0.87579079]
[1733358661765,1.06628451,227.81,227.65,0.87591907]
[1733358662076,20.0,227.77,227.61,0.87606766]
[1733358662277,20.0,227.73,227.58,0.8760392]
[1733358662466,1.06628451,227.72,227.58,0.8760392]
[1733358662669,1.06628451,227.72,227.51,0.8762715]
[1733358662902,21.5719,227.68,227.51,0.8762715]
[1733358663102,1.06628451,227.67,227.51,0.8762715]
[1733358664097,1.5719,227.68,227.53,20.0]
[1733358664278,1.5719,227.68,227.58,23.776884]
[1733358664481,1.5719,227.68,227.58,24.65315622]
[1733358665201,1.5719,227.68,227.58,0.87627222]
[1733358665496,1.5719,227.68,227.51,0.8762793]
[1733358665703,1.06628451,227.67,227.51,0.8762793]
[1733358666069,1.5719,227.68,227.51,0.8762793]
[1733358666371,1.06628451,227.67,227.51,0.8762793]
[1733358666582,1.06628451,227.67,227.53,20.0]
[1733358666788,1.5719,227.68,227.53,20.87641746]
[1733358666972,1.06628451,227.67,227.53,0.87641746]
[1733358667806,1.06628451,227.67,227.51,0.87649542]
[1733358668501,6.0759,227.66,227.51,0.87649542]
[1733358668702,20.0,227.63,227.51,0.87649542]
[1733358668871,1.06628451,227.62,227.51,0.87649542]
[1733358669606,1.06628451,227.62,227.5,41.66666667]
[1733358670266,20.0,227.57,227.5,41.66666667]
[1733358670469,21.06628451,227.56,227.5,41.66666667]
[1733358671369,1.06628451,227.56,227.5,41.66666667]
[1733358671819,1.06628451,227.59,227.5,41.66666667]
[1733358672103,7.8135,227.6,227.51,24.65357693]
[1733358672612,1.6547,227.66,227.55,23.776884]
[1733358672894,6.433,227.67,227.61,23.776884]
[1733358673103,6.433,227.67,227.63,23.776884]
[1733358673270,8.0877,227.73,227.64,0.87612406]
[1733358673469,8.0877,227.73,227.66,0.12549]
[1733358673470,6.433,227.73,227.66,0.12549]
[1733358673809,1.6326,227.8,227.73,23.776884]
[1733358674104,1.6326,227.8,227.73,24.65262361]
[1733358674281,6.4216,227.81,227.73,24.65262361]
[1733358674469,6.4216,227.87,227.73,24.65262361]
[1733358674679,6.4216,227.87,227.77,23.776884]
[1733358674895,6.4216,227.87,227.77,24.65238989]
[1733358675810,6.4216,227.87,227.77,23.776884]
[1733358676100,20.0,227.84,227.77,23.776884]
[1733358676316,1.06628451,227.83,227.69,0.8757038]
[1733358676515,1.06628451,227.83,227.68,23.776884]
[1733358678113,1.06628451,227.83,227.63,0.12549]
[1733358678285,1.06628451,227.83,227.64,0.87599627]
[1733358678794,1.06628451,227.83,227.65,0.12549]
[1733358679006,1.06628451,227.83,227.66,0.87587361]
[1733358679217,1.06628451,227.83,227.67,23.776884]
[1733358679587,1.06628451,227.83,227.66,0.87587361]
[1733358679964,20.0,227.82,227.64,20.0]
[1733358680128,1.06628451,227.81,227.64,20.0]
[1733358680784,1.06628451,227.81,227.66,23.776884]
[1733358680986,1.06628451,227.83,227.67,0.87597905]
[1733358681219,1.06628451,227.83,227.68,23.776884]
[1733358681585,1.06628451,227.86,227.7,23.776884]
[1733358682014,23.776884,227.85,227.65,20.0]
[1733358682217,23.776884,227.83,227.65,20.0]
[1733358682518,23.776884,227.83,227.54,8.7896]
[1733358682519,23.776884,227.79,227.54,8.7896]
[1733358682712,20.0,227.76,227.54,9.66590814]
[1733358682916,20.0,227.67,227.51,0.87633249]
[1733358683089,1.06628451,227.66,227.51,0.87633249]
[1733358683287,1.06628451,227.66,227.5,41.66666667]
[1733358684200,20.0,227.62,227.5,41.66666667]
[1733358684423,20.0,227.57,227.5,41.66666667]
[1733358684611,1.06628451,227.56,227.5,41.66666667]
[1733358684913,1.539,227.55,227.5,41.66666667]
[1733358685119,1.06628451,227.54,227.5,41.66666667]
[1733358685323,23.776884,227.53,227.5,40.00006667]
[1733358685491,20.0,227.51,227.5,30.39946667]
[1733358685692,43.776884,227.51,227.5,15.39966667]
[1733358686800,20.0,227.51,227.5,15.39966667]
[1733358688330,5.69,227.59,227.5,15.39966667]
[1733358688534,1.06628451,227.58,227.5,15.39966667]
[1733358689027,1.06628451,227.67,227.5,15.39966667]
[1733358689515,1.06628451,227.67,227.54,0.0216669]
[1733358689718,1.06628451,227.67,227.55,0.0216669]
[1733358690025,1.06628451,227.68,227.55,0.0216669]
[1733358690232,1.06628451,227.68,227.51,23.776884]
[1733358690514,1.06628451,227.68,227.5,15.39966667]
[1733358690827,10.0,227.65,227.5,15.39966667]
[1733358691004,20.0,227.62,227.5,15.39966667]
[1733358691207,20.0,227.58,227.5,15.39966667]
[1733358691414,1.06628451,227.57,227.5,15.39966667]
[1733358692207,20.0,227.62,227.5,15.39966667]
[1733358692401,1.06628451,227.61,227.5,15.39966667]
[1733358692725,1.06628451,227.68,227.51,23.776884]
[1733358693297,1.06628451,227.68,227.52,0.87651487]
[1733358693499,1.06628451,227.68,227.51,23.776884]
[1733358694800,20.0,227.64,227.5,15.39966667]
[1733358695001,1.06628451,227.63,227.5,15.39966667]
[1733358695303,23.776884,227.62,227.5,15.39966667]
[1733358695500,20.0,227.59,227.5,15.39966667]
[1733358695725,1.06628451,227.58,227.5,15.39966667]
[1733358696217,1.06628451,227.63,227.5,15.39966667]
[1733358697323,20.0,227.63,227.5,15.39966667]
[1733358697530,20.0,227.59,227.5,15.39966667]
[1733358697714,5.69,227.57,227.5,15.39966667]
[1733358697902,20.0,227.54,227.5,15.39966667]
[1733358698101,1.06628451,227.53,227.5,15.39966667]
[1733358699824,20.0,227.54,227.5,15.39966667]
[1733358700036,1.06628451,227.53,227.5,15.39966667]
[1733358702511,6.75628451,227.64,227.5,15.39966667]
[1733358702911,5.0,227.63,227.5,15.39966667]
[1733358703121,1.06628451,227.62,227.5,15.39966667]
[1733358703340,6.06628451,227.62,227.5,15.39966667]
[1733358703522,5.0,227.59,227.5,15.39966667]
[1733358703717,20.0,227.56,227.5,15.39966667]
[1733358703918,1.06628451,227.55,227.5,15.39966667]
[1733358704715,1.06628451,227.58,227.5,15.39966667]
[1733358704914,1.06628451,227.63,227.5,15.39966667]
[1733358705651,1.06628451,227.63,227.51,23.776884]
[1733358706627,1.06628451,227.63,227.5,15.39966667]
[1733358707223,20.0,227.61,227.5,15.39966667]
[1733358707424,1.06628451,227.6,227.5,15.39966667]
[1733358707851,1.06628451,227.6,227.51,23.776884]
[1733358708013,5.69,227.7,227.51,23.776884]
[1733358708217,1.06628451,227.69,227.55,23.776884]
[1733358708425,1.06628451,227.69,227.57,23.776884]
[1733358708624,1.06628451,227.75,227.57,23.776884]
[1733358708836,1.06628451,227.75,227.56,23.776884]
[1733358709621,1.06628451,227.75,227.6,23.776884]
[1733358709824,5.69,227.83,227.64,23.776884]
[1733358710054,5.69,227.83,227.57,20.87622118]
[1733358710055,1.06628451,227.82,227.57,20.87622118]
[1733358710236,1.06628451,227.82,227.58,23.776884]
[1733358710626,5.0,227.81,227.58,23.776884]
[1733358710944,10.69,227.83,227.5,26.95976667]
[1733358710945,20.0,227.74,227.5,26.95976667]
[1733358711245,1.06628451,227.73,227.54,43.776884]
[1733358712043,24.84316851,227.75,227.54,43.776884]
[1733358712249,20.0,227.72,227.54,43.776884]
[1733358712546,1.06628451,227.74,227.6,23.776884]
[1733358712722,1.06628451,227.82,227.6,23.776884]
[1733358713348,1.06628451,227.82,227.64,23.776884]
[1733358714451,10.0,227.9,227.64,23.776884]
[1733358714452,1.06628451,227.89,227.72,23.776884]
[1733358715043,1.06628451,227.93,227.72,23.776884]
[1733358715651,1.06628451,227.93,227.76,23.776884]
[1733358716244,1.06628451,227.93,227.78,23.776884]
[1733358716856,1.06628451,227.93,227.77,23.776884]
[1733358717064,1.06628451,227.93,227.79,0.12549]
[1733358717228,0.23361726,227.97,227.82,23.776884]
[1733358719139,0.23361726,227.97,227.85,20.0]
[1733358719329,0.23361726,227.97,227.86,23.776884]
[1733358719535,0.23361726,227.97,227.9,23.776884]
[1733358720244,0.23361726,227.97,227.91,2.40182917]
[1733358720462,0.23361726,227.97,227.96,23.776884]
[1733358720755,0.23361726,227.97,227.96,24.90266163]
[1733358720949,1.06628451,228.12,228.01,135.96638274]
[1733358721128,1.06628451,228.12,227.96,23.776884]
[1733358722454,1.06628451,228.12,227.99,20.0]
[1733358722657,1.06628451,228.12,228.02,23.776884]
[1733358722953,1.06628451,228.17,228.02,23.776884]
[1733358723344,1.06628451,228.17,228.03,0.87459453]
[1733358723543,0.5115196,228.18,228.03,0.87459453]
[1733358723544,0.5115196,228.18,228.08,23.776884]
[1733358723730,0.5115196,228.18,228.1,23.776884]
[1733358724132,0.5115196,228.18,228.01,20.0]
[1733358724369,0.5115196,228.18,228.02,23.776884]
[1733358724859,0.5115196,228.18,227.99,1.6419]
[1733358725071,1.06628451,228.17,228.0,23.776884]
[1733358725568,1.06628451,228.17,228.02,23.776884]
[1733358725864,0.5115196,228.18,228.02,23.776884]
[1733358726353,0.5115196,228.18,228.04,23.776884]
[1733358726544,0.5115196,228.18,228.04,159.976884]
[1733358726739,0.5115196,228.18,228.04,23.776884]
[1733358726937,0.5115196,228.18,227.99,1.6419]
[1733358726938,20.0,228.13,227.99,1.6419]
[1733358727138,1.06628451,228.12,227.99,1.6419]
[1733358727751,21.06628451,228.17,227.99,1.6419]
[1733358727929,20.0,228.13,227.99,1.6419]
[1733358728128,20.0,228.13,227.97,0.87479878]
[1733358728129,1.06628451,228.12,227.97,0.87479878]
[1733358728360,1.06628451,228.15,227.98,0.12549]
[1733358728565,0.5115196,228.18,228.04,23.902374]
[1733358728858,0.5115196,228.18,228.06,23.902374]
[1733358729265,0.5115196,228.18,228.1,23.776884]
[1733358729987,0.5115196,228.18,228.07,23.776884]
[1733358730536,0.5115196,228.18,228.1,20.0]
[1733358730765,0.5115196,228.18,228.11,24.65123403]
[1733358731464,0.5115196,228.18,228.07,6.1884]
[1733358731657,0.5115196,228.18,228.11,20.0]
[1733358732058,0.5115196,228.18,228.12,23.776884]
[1733358735169,0.5115196,228.18,228.1,20.0]
[1733358735552,0.5115196,228.18,228.07,7.06273365]
[1733358735869,0.5115196,228.18,228.07,6.1884]
[1733358736254,0.5115196,228.18,228.09,23.776884]
[1733358736459,0.5115196,228.18,228.11,23.776884]
[1733358736890,0.5115196,228.18,228.13,23.776884]
[1733358737584,0.5115196,228.18,228.08,0.8741638]
[1733358737879,0.5115196,228.18,228.07,6.1884]
[1733358738097,0.5115196,228.18,228.06,1.511]
[1733358738269,0.5115196,228.18,228.01,6.0827]
[1733358738451,0.5115196,228.18,228.01,6.95733837]
[1733358739658,0.5115196,228.18,228.04,20.0]
[1733358740091,0.5115196,228.18,228.04,20.87453315]
[1733358740282,0.5115196,228.18,228.05,23.776884]
[1733358740474,0.5115196,228.18,228.09,23.776884]
[1733358741357,6.2015196,228.18,228.01,6.0827]
[1733358741569,1.06628451,228.17,228.04,20.0]
[1733358741772,6.2015196,228.18,228.05,0.87449409]
[1733358741966,0.5115196,228.18,228.05,0.87449409]
[1733358742275,0.5115196,228.18,228.05,20.87449409]
[1733358742492,0.5115196,228.18,228.07,23.776884]
[1733358742683,0.5115196,228.18,228.11,23.776884]
[1733358743065,0.5115196,228.18,228.13,23.776884]
[1733358743272,0.5115196,228.18,228.17,23.776884]
[1733358743471,0.5115196,228.18,228.13,25.298784]
[1733358743472,0.5115196,228.18,228.13,1.5219]
[1733358743675,0.5115196,228.18,228.14,23.776884]
[1733358744292,0.5115196,228.18,228.09,20.0]
[1733358744663,0.5115196,228.18,228.14,23.776884]
[1733358744887,0.5115196,228.18,228.17,20.0]
[1733358745190,0.5115196,228.18,228.14,23.776884]
[1733358745993,0.5115196,228.18,228.07,1.6182]
[1733358746167,0.5115196,228.18,228.1,0.87413321]
[1733358747066,0.5115196,228.18,228.14,20.0]
[1733358747270,0.5115196,228.18,228.15,23.776884]
[1733358750609,0.5115196,228.18,228.17,43.776884]
[1733358751481,0.5115196,228.18,228.17,43.902374]
[1733358753000,0.5115196,228.18,228.17,43.776884]
[1733358753507,20.0,228.31,228.22,135.6884804]
[1733358753690,20.0,228.31,228.18,0.12549]
[1733358753875,20.0,228.31,228.2,23.776884]
[1733358754298,20.0,228.31,228.22,23.776884]
[1733358755108,5.69,228.34,228.24,23.776884]
[1733358755519,5.69,228.34,228.26,23.776884]
[1733358755807,1.57780411,228.41,228.26,23.776884]
[1733358755808,5.69,228.4,228.26,23.776884]
[1733358755995,1.06628451,228.39,228.26,23.776884]
[1733358756506,5.69,228.4,228.27,0.87369633]
[1733358756713,5.69,228.4,228.28,23.776884]
[1733358757009,5.69,228.4,228.29,0.87352406]
[1733358757185,0.5115196,228.41,228.3,23.776884]
[1733358757385,0.5115196,228.41,228.32,23.776884]
[1733358757595,0.5115196,228.41,228.34,23.776884]
[1733358757901,0.5115196,228.41,228.29,20.0]
[1733358758110,0.5115196,228.41,228.3,23.776884]
[1733358758313,0.5115196,228.41,228.27,0.87344232]
[1733358758314,0.5115196,228.41,228.27,23.776884]
[1733358758476,0.5115196,228.41,228.26,6.1248]
[1733358758815,20.0,228.4,228.21,6.3353]
[1733358759022,1.06628451,228.39,228.21,6.3353]
[1733358759514,20.0,228.34,228.15,0.87384116]
[1733358759675,23.776884,228.32,228.13,8.012]
[1733358759880,20.0,228.29,228.13,1.6462]
[1733358760105,1.06628451,228.28,228.13,1.6462]
[1733358760383,1.06628451,228.28,228.09,0.87406238]
[1733358760604,1.06628451,228.28,228.08,6.3658]
[1733358760605,5.69,228.27,228.08,6.3658]
[1733358760797,20.0,228.24,228.09,0.87432803]
[1733358761299,1.06628451,228.23,228.09,0.87432803]
[1733358761504,20.0,228.24,228.09,0.87432803]
[1733358761802,1.06628451,228.23,228.09,0.87432803]
[1733358762015,1.06628451,228.23,228.08,6.3658]
[1733358763117,1.06628451,228.23,228.07,1.6462]
[1733358763294,20.0,228.19,228.0,2.53073306]
[1733358763481,1.06628451,228.18,228.0,2.53073306]
[1733358763787,1.06628451,228.18,228.0,1.6563]
[1733358764815,1.06628451,228.18,228.01,20.0]
[1733358765188,1.06628451,228.18,227.93,1.5748]
[1733358765189,29.466884,228.17,227.93,1.5748]
[1733358765379,20.0,228.14,227.94,0.87479024]
[1733358765582,1.06628451,228.13,227.94,0.87479024]
[1733358765890,1.06628451,228.13,227.95,0.12549]
[1733358766087,1.06628451,228.13,227.94,0.87479024]
[1733358766317,1.06628451,228.13,227.93,1.5748]
[1733358766526,23.776884,228.12,227.93,1.5748]
[1733358766692,20.0,228.09,227.92,0.87502449]
[1733358766892,1.06628451,228.08,227.92,0.87502449]
[1733358767792,1.06628451,228.08,227.89,0.87498095]
[1733358768626,1.06628451,228.08,227.9,23.776884]
[1733358768828,1.06628451,228.08,227.92,23.776884]
[1733358769688,1.06628451,228.11,227.98,23.776884]
[1733358769910,1.06628451,228.16,227.98,23.776884]
[1733358770124,1.06628451,228.16,228.0,23.776884]
[1733358770437,1.06628451,228.16,227.97,20.0]
[1733358770438,1.06628451,228.16,228.02,23.776884]
[1733358770624,1.06628451,228.16,228.04,23.776884]
[1733358770800,5.69,228.17,228.04,23.776884]
[1733358771128,5.69,228.17,228.06,23.776884]
[1733358771909,1.06628451,228.25,228.06,23.776884]
[1733358771910,5.69,228.26,228.07,0.87446616]
[1733358772109,5.69,228.26,228.08,23.776884]
[1733358772110,1.06628451,228.25,228.08,23.776884]
[1733358773006,1.06628451,228.25,228.06,20.0]
[1733358773211,1.06628451,228.25,228.11,23.776884]
[1733358773414,5.69,228.26,228.14,136.2]
[1733358773618,5.69,228.26,228.11,23.776884]
[1733358773834,5.69,228.26,228.13,23.902374]
[1733358774135,5.69,228.35,228.17,23.776884]
[1733358774301,1.06628451,228.34,228.17,23.776884]
[1733358774505,1.06628451,228.34,228.18,0.87398935]
[1733358774727,1.06628451,228.34,228.19,23.776884]
[1733358775235,1.06628451,228.34,228.17,23.776884]
[1733358775403,1.06628451,228.34,228.19,23.776884]
[1733358776029,1.06628451,228.34,228.17,23.776884]
[1733358777009,20.0,228.32,228.09,0.87398917]
[1733358777207,1.06628451,228.31,228.11,23.776884]
[1733358777409,1.06628451,228.31,228.12,0.87417836]
[1733358777617,21.06628451,228.31,228.13,23.776884]
[1733358778341,1.06628451,228.31,228.13,23.776884]
[1733358778546,21.06628451,228.31,228.13,23.776884]
[1733358778754,21.06628451,228.31,228.03,10.46883549]
[1733358778755,26.06628451,228.31,228.0,12.6707445]
[1733358778909,26.06628451,228.31,228.09,0.12549]
[1733358778910,21.06628451,228.31,228.09,0.12549]
[1733358779111,20.0,228.3,228.1,23.776884]
[1733358779329,1.06628451,228.29,228.1,23.776884]
[1733358779508,20.0,228.28,228.03,0.87425522]
[1733358779728,20.0,228.26,228.04,0.12549]
[1733358779918,1.06628451,228.25,228.06,0.12549]
[1733358780104,1.06628451,228.25,228.08,0.12549]
[1733358780424,5.0,228.3,228.04,0.12549]
[1733358780628,21.06628451,228.31,228.03,0.87424157]
[1733358780629,1.06628451,228.29,228.06,23.902374]
[1733358780827,1.06628451,228.29,228.12,23.902374]
[1733358781021,1.06628451,228.34,228.14,23.776884]
[1733358781925,6.06628451,228.34,228.09,20.0]
[1733358782128,6.06628451,228.34,228.06,20.0]
[1733358782429,5.0,228.31,228.08,0.12549]
[1733358782634,1.06628451,228.3,228.08,0.12549]
[1733358782937,1.06628451,228.3,228.07,0.87429822]
[1733358782938,20.0,228.27,228.02,0.87437784]